Cogmind - Beta 10.2 *** ADVENTURER MODE // 2021.09.19 @ 01:19:40 Player: Jezoensis Result: Self-destructed Performance ------------- Evolutions (1) 500 Regions Visited (5) 1000 Robots Destroyed (40) 200 Value Destroyed (773) 773 Prototype IDs (3) 60 Alien Tech Used (0) 0 Bonus (-61) -61 TOTAL SCORE: 2472 Bonus ------- Friendly Fire -61 Cogmind --------- Core Integrity 348/400 Matter 280/300 Energy 272/280 System Corruption 0% Temperature Cool (0) Movement Treading (160) Location -9/Exiles Parts ------- > --- POWER (1) -------- Heavy Ion Engine > --- PROPULSION (3) --- Light Treads Light Treads Light Treads > --- UTILITY (3) ------ Large Storage Unit Large Storage Unit Advanced Terrain Scanner > --- WEAPON (2) ------- Heavy Assault Rifle Field Lobotomy Kit > --- INVENTORY (16) --- Heavy Ion Engine Light Treads Improved Aluminum Leg Improved Aluminum Leg Improved Aluminum Leg Carbon-fiber Leg Medium Storage Unit Advanced Visual Processing Unit Improved Terrain Scanner Insulated Plating EM Shotgun EM Shotgun Heavy Assault Rifle Rocket Launcher Rocket Launcher Mining Laser Peak State ------------ > --- POWER ------------ Heavy Ion Engine > --- PROPULSION ------- Light Treads Light Treads Light Treads > --- UTILITY ---------- Large Storage Unit Large Storage Unit Advanced Terrain Scanner > --- WEAPON ----------- Heavy Assault Rifle Field Lobotomy Kit > --- INVENTORY -------- Heavy Ion Engine Light Treads Improved Aluminum Leg Improved Aluminum Leg Improved Aluminum Leg Carbon-fiber Leg Medium Storage Unit Advanced Visual Processing Unit Improved Terrain Scanner Insulated Plating EM Shotgun EM Shotgun Heavy Assault Rifle Rocket Launcher Rocket Launcher Mining Laser [Rating: 26] Favorites ----------- Power Ion Engine Engine Ion Engine Propulsion Light Treads Treads Light Treads Utility Large Storage Unit Device Improved Terrain Scanner Storage Large Storage Unit Processor Terrain Scan Processor Protection Light Armor Plating Weapon Assault Rifle Energy Gun EM Pulse Gun Ballistic Gun Assault Rifle Special Weapon Mining Laser Build | -11 -10 -10 -9 -9 -9 ------- Run | Scr Mat Min Mat Min Exi Slots Evolved 2 | . . . 2 . . Power . | . . . . . . Propulsion 1 | . . . 1 . . Utility 1 | . . . 1 . . Weapon . | . . . . . . Parts Attached 43 | 7 6 3 25 1 1 Power 3 | 1 . . 2 . . Engine 3 | 1 . . 2 . . Core . | . . . . . . Reactor . | . . . . . . Propulsion 9 | 2 . 1 6 . . Treads 9 | 2 . 1 6 . . Leg . | . . . . . . Wheel . | . . . . . . Hover . | . . . . . . Flight . | . . . . . . Utility 13 | 2 1 . 9 1 . Device 6 | 1 . . 4 1 . Storage 3 | 1 1 . 1 . . Processor 1 | . . . 1 . . Hackware . | . . . . . . Protection 3 | . . . 3 . . Artifact . | . . . . . . Weapon 18 | 2 5 2 8 . 1 Energy Gun 8 | . 3 1 4 . . Energy Cannon . | . . . . . . Ballistic Gun 6 | 2 . 1 3 . . Ballistic Cannon . | . . . . . . Launcher . | . . . . . . Special Weapon 4 | . 2 . 1 . 1 Impact Weapon . | . . . . . . Slashing Weapon . | . . . . . . Piercing Weapon . | . . . . . . Special Melee Weapon . | . . . . . . Unidentified Prototypes 3 | . . . 2 . 1 Parts Lost 2 | . 1 . 1 . . Power . | . . . . . . Propulsion 1 | . . . 1 . . Utility . | . . . . . . Weapon 1 | . 1 . . . . Highest Loss Streak 1 | . 1 . 1 . . Average Slot Usage (%) 99 | . 100 99 98 100 100 Engine 12 | . 14 14 11 11 11 Treads 30 | . 28 27 32 33 33 Device 11 | . 14 14 9 11 11 Storage 15 | . 14 14 14 22 22 Protection 2 | . . . 6 . . Energy Gun 8 | . 3 14 9 11 10 Ballistic Gun 13 | . 18 14 11 11 11 Special Weapon 2 | . 5 . 1 . . Naked Turns . | . . . . . . Heaviest Build 49 | 14 26 26 49 47 47 Greatest Support 60 | 40 40 40 60 60 60 Greatest Overweight (x) 1 | . . 1 . . . Average Overweight (x) . | . . . . . . Largest Inventory Capacity 16 | 6 10 10 16 16 16 Average Capacity 10 | 5 8 10 11 16 16 Most Carried 16 | 4 9 10 16 16 16 Average Carried 9 | 2 5 9 10 16 16 Final Capacity 16 | 6 10 10 16 16 16 Final Carried 16 | 3 9 10 16 16 16 Class Distribution -------------------- 54% | Mutant 45% | Scavenger-Mutant Dominant Class ---------------- Mutant | -10/Materials Mutant | -10/Mines Scavenger-Mutant | -9/Materials Scavenger-Mutant | -9/Mines Scavenger-Mutant | -9/Exiles Resources | -11 -10 -10 -9 -9 -9 ----------- Run | Scr Mat Min Mat Min Exi Matter Collected 892 | 336 142 13 401 . . Remotely . | . . . . . . Salvage Created 1572 | 189 324 30 1029 . . Parts 104 | 12 22 2 68 . . Haulers Intercepted 5 | . 1 . 4 . . Recyclers Shooed 1 | . . . 1 . . Parts Field Recycled . | . . . . . . Retrieved Matter . | . . . . . . Parts Self-Destructed . | . . . . . . Prevented . | . . . . . . Kills | -11 -10 -10 -9 -9 -9 ------- Run | Scr Mat Min Mat Min Exi Combat Hostiles Destroyed 19 | . 7 . 12 . . Guns 18 | . 7 . 11 . . AOE 1 | . . . 1 . . Classes Destroyed 10 | 3 4 1 2 . . Worker 1 | 1 . . . . . Builder 5 | . . 1 4 . . Tunneler 4 | 4 . . . . . Hauler 5 | . 1 . 4 . . Recycler 3 | 1 . . 2 . . Operator 1 | . . . 1 . . Watcher 2 | . 1 . 1 . . Swarmer 3 | . 3 . . . . Grunt 13 | . 4 . 9 . . Sentry 3 | . . . 3 . . Best Kill Streak 13 | 4 5 1 13 . . Combat Bots Only 6 | . 5 . 6 . . Max Kills in Single Turn 2 | 1 1 1 2 . . Gunslinging . | . . . . . . Exploded 1 | . . . 1 . . Melee . | . . . . . . Uniques/NPCs Destroyed . | . . . . . . Combat | -11 -10 -10 -9 -9 -9 -------- Run | Scr Mat Min Mat Min Exi Damage Taken 737 | . 208 73 456 . . Core 73 | . 21 . 52 . . Absorbed by Shields . | . . . . . . Core Remaining (%) 95 | 100 . 91 . . . Volleys Fired 96 | 11 30 1 54 . . Largest 2 | 2 2 2 2 . . Hottest 100 | 40 100 60 100 . . Shots Fired 171 | 22 51 2 96 . . Gun 159 | 22 42 2 93 . . Cannon . | . . . . . . Launcher . | . . . . . . Special 12 | . 9 . 3 . . Kinetic 99 | 22 29 1 47 . . Thermal 12 | . 9 . 3 . . Explosive . | . . . . . . Electromagnetic 60 | . 13 1 46 . . Robot Hit Streak 44 | 12 26 5 44 . . Robot Miss Streak 3 | 1 3 . 1 . . Penetration Max . | . . . . . . Secondary Targets 2 | . 1 . 1 . . Max Gunslinging Chain 1 | . 1 . 1 . . Shots Hit Robots 131 | 16 32 1 82 . . Core Hits 64 | 7 14 1 42 . . Critical Hits 1 | . . . 1 . . Critical Kills . | . . . . . . Critical Parts Destroyed 1 | . . . 1 . . Melee Attacks . | . . . . . . Impact . | . . . . . . Slashing . | . . . . . . Piercing . | . . . . . . Sneak Attacks . | . . . . . . Combat Hostiles . | . . . . . . Follow-up Attacks . | . . . . . . Damage Inflicted 2067 | 184 392 13 1478 . . Guns 1825 | 184 392 13 1236 . . Cannons . | . . . . . . Explosions 239 | . . . 239 . . Melee . | . . . . . . Ramming 3 | . . . 3 . . Kinetic 951 | 184 226 . 541 . . Thermal 198 | . . . 198 . . Explosive 41 | . . . 41 . . Electromagnetic 874 | . 166 13 695 . . Impact . | . . . . . . Slashing . | . . . . . . Piercing . | . . . . . . Highest Corruption 1 | . . 1 . . . Average Corruption 1 | . . 1 . . . Corruption Purged . | . . . . . . Overload Shots . | . . . . . . Overflow Damage . | . . . . . . Projectiles . | . . . . . . Explosions . | . . . . . . Melee . | . . . . . . Knockbacks . | . . . . . . Impact . | . . . . . . Kinetic . | . . . . . . Secondary . | . . . . . . Self-Inflicted Damage 111 | . . . 111 . . Shots 4 | . . . 4 . . Rammed 1 | . . . 1 . . Targets Rammed 1 | . . . 1 . . Kicked . | . . . . . . Crushed . | . . . . . . Highest Temperature 132 | . 66 . 132 . . Average Temperature 25 | . 25 . 25 . . Received Heat Transfer 315 | . 114 . 201 . . Siege Activations . | . . . . . . Robots Corrupted . | . . . . . . Combat Hostiles . | . . . . . . Parts Fried 2 | . . . 2 . . Impact Corruptions . | . . . . . . Robots Melted . | . . . . . . Combat Hostiles . | . . . . . . Parts Melted . | . . . . . . Heat Transferred 250 | . . . 250 . . Parts Sabotaged . | . . . . . . Parts Stolen . | . . . . . . Parts Stripped . | . . . . . . Power Chain Reactions 5 | . . . 5 . . Missiles Intercepted . | . . . . . . Alert | -11 -10 -10 -9 -9 -9 ------- Run | Scr Mat Min Mat Min Exi Peak Influence 421 | 30 214 29 421 85 . Initial 85 | . 16 24 9 85 . Average 118 | 10 97 27 218 85 . Maximum Alert Level 2 | . 1 . 2 . . Low Security (%) 78 | 100 98 100 39 100 . Level 1 19 | . 1 . 55 . . Level 2 1 | . . . 5 . . Level 3 . | . . . . . . Level 4 . | . . . . . . Level 5 . | . . . . . . High Security . | . . . . . . Max Security . | . . . . . . Squads Dispatched 3 | . . . 3 . . Investigation 1 | . . . 1 . . Extermination . | . . . . . . Reinforcement 2 | . . . 2 . . Assault . | . . . . . . Garrison . | . . . . . . Intercept . | . . . . . . Construction Impeded 1 | . . . 1 . . Haulers Reinforced . | . . . . . . Stealth | -11 -10 -10 -9 -9 -9 --------- Run | Scr Mat Min Mat Min Exi Distress Signals 2 | . 1 . 1 . . Communications Jammed . | . . . . . . Distress Signals . | . . . . . . Times Spotted 30 | . 9 . 21 . . Peak Tracking Total 6 | . 3 . 6 . . Tactical Retreats 2 | . . . 2 . . Traps | -11 -10 -10 -9 -9 -9 ------- Run | Scr Mat Min Mat Min Exi Traps Triggered 3 | . . 3 . . . Indirectly . | . . . . . . Trap Hack Attempts . | . . . . . . Triggered . | . . . . . . Disarmed . | . . . . . . Reprogrammed . | . . . . . . Reused . | . . . . . . Traps Extracted . | . . . . . . Installed . | . . . . . . Triggered . | . . . . . . Machines | -11 -10 -10 -9 -9 -9 ---------- Run | Scr Mat Min Mat Min Exi Machines Disabled 2 | . . . 2 . . Max in Single Turn 1 | . . . 1 . . Machines Sabotaged . | . . . . . . Garrisons Compromised . | . . . . . . Overloaded Fab Kills . | . . . . . . Fab Network Shutdowns . | . . . . . . Hacking | -11 -10 -10 -9 -9 -9 --------- Run | Scr Mat Min Mat Min Exi Machines Accessed 7 | . 5 1 1 . . Terminals 5 | . 5 . . . . Fabricators . | . . . . . . Repair Stations 1 | . . . 1 . . Recycling Units . | . . . . . . Scanalyzers . | . . . . . . Garrison Access . | . . . . . . Total Hacks 22 | . 16 1 5 . . Successful 17 | . 12 1 4 . . Failed 4 | . 3 . 1 . . Catastrophic . | . . . . . . Database Lockouts 1 | . 1 . . . . Manual 9 | . 8 . . . 1 Terminals 16 | . 16 . . . . Fabricators . | . . . . . . Repair Stations 5 | . . . 5 . . Recycling Units . | . . . . . . Scanalyzers . | . . . . . . Garrison Access . | . . . . . . Terminal Hacks 10 | . 9 1 . . . Part Schematic 2 | . 2 . . . . Open Door 1 | . . 1 . . . Branch Access Points 1 | . 1 . . . . Emergency Access Points 1 | . 1 . . . . Terminal Index 1 | . 1 . . . . Locate Traps 2 | . 2 . . . . Hauler Manifests 1 | . 1 . . . . Zone Layout 1 | . 1 . . . . Fabricator Hacks . | . . . . . . Repair Station Hacks 4 | . . . 4 . . Scan Component 2 | . . . 2 . . Repair 2 | . . . 2 . . Recycling Unit Hacks . | . . . . . . Scanalyzer . | . . . . . . Garrison Access Hacks . | . . . . . . Unauthorized Hacks 3 | . 3 . . . . Terminals 3 | . 3 . . . . Track 1 | . 1 . . . . Botnet 2 | . 2 . . . . Fabricators . | . . . . . . Repair Stations . | . . . . . . Recycling Units . | . . . . . . Scanalyzers . | . . . . . . Garrison Access . | . . . . . . Data Cores Recovered . | . . . . . . Used . | . . . . . . Hacking Detections 5 | . 5 . . . . Full Trace Events . | . . . . . . Feedback Events . | . . . . . . Feedback Blocked . | . . . . . . Robot Schematics Acquired . | . . . . . . Robots Built . | . . . . . . Matter . | . . . . . . Time . | . . . . . . Total Robot Build Rating . | . . . . . . Part Schematics Acquired 2 | . 2 . . . . Parts Built . | . . . . . . Matter . | . . . . . . Time . | . . . . . . Total Part Build Rating . | . . . . . . Parts Repaired 2 | . . . 2 . . Time 76 | . . . 76 . . Parts Recycled . | . . . . . . Recycled Matter . | . . . . . . Retrieved Matter . | . . . . . . Retrieved Components . | . . . . . . Parts Scanalyzed . | . . . . . . Part Schematics Acquired . | . . . . . . Parts Damaged . | . . . . . . Bothacking | -11 -10 -10 -9 -9 -9 ------------ Run | Scr Mat Min Mat Min Exi Used RIF Installer . | . . . . . . Robots Hacked . | . . . . . . Non-combat . | . . . . . . Combat . | . . . . . . Robot Hacks Applied . | . . . . . . Relay Couplers Released . | . . . . . . Robots Rewired . | . . . . . . Allies Hacked . | . . . . . . Hacks Repelled . | . . . . . . Allies | -11 -10 -10 -9 -9 -9 -------- Run | Scr Mat Min Mat Min Exi Total Allies . | . . . . . . Largest Group . | . . . . . . Highest-Rated Group . | . . . . . . Highest-Rated Ally . | . . . . . . Total Orders . | . . . . . . Ally Attacks . | . . . . . . Total Damage . | . . . . . . Kills . | . . . . . . Allies Corrupted . | . . . . . . Allies Melted . | . . . . . . Intel | -11 -10 -10 -9 -9 -9 ------- Run | Scr Mat Min Mat Min Exi Robot Analysis Total . | . . . . . . Derelict Logs Recovered 1 | . . 1 . . . Drone Launches . | . . . . . . Drone Recoveries . | . . . . . . Exploration | -11 -10 -10 -9 -9 -9 ------------- Run | Scr Mat Min Mat Min Exi Turns Passed 1969 | 103 524 390 625 160 167 Spaces Moved 986 | 42 254 236 252 100 102 Core 10 | 10 . . . . . Treads 976 | 32 254 236 252 100 102 Legs . | . . . . . . Wheels . | . . . . . . Hover . | . . . . . . Flight . | . . . . . . Fastest Speed 50 | 50 160 160 160 160 160 Average Speed 158 | 133 160 160 160 160 160 Slowest Speed 180 | 160 160 180 160 160 160 Overloaded Moves . | . . . . . . Propulsion Burnouts . | . . . . . . Robots Hopped . | . . . . . . Cave-ins Triggered . | . . . . . . Exploration Rate (%) 35 | 4 57 51 23 37 39 Regions Visited 5 Branch Regions 3 Pre-discovered Areas 2 | . . 1 . 1 . Known Exits Taken 1 | . 1 . . . . Unknown Exits Taken 4 | 1 . 1 1 1 . Scrap Searched . | . . . . . . Spaces Dug 12 | . 9 . 3 . . Terrain Destroyed 36 | . 9 . 27 . . Melee . | . . . . . . Projectile 12 | . 9 . 3 . . AOE 24 | . . . 24 . . Terrain Rammed . | . . . . . . Walls Destroyed . | . . . . . . Machines Disabled . | . . . . . . Actions | -11 -10 -10 -9 -9 -9 --------- Run | Scr Mat Min Mat Min Exi Total 1192 | 65 303 246 373 100 105 Wait 10 | . . . 10 . . Move 981 | 41 253 235 251 99 102 Hop . | . . . . . . Pick Up 34 | 6 9 4 15 . . Fast Attach 13 | 4 1 2 5 . 1 Attach 9 | 3 1 . 5 . . Detach 3 | . 1 . 2 . . Swap 21 | . 4 1 15 1 . Drop 23 | . 4 3 15 . 1 Fire 96 | 11 30 1 54 . . Melee . | . . . . . . Ram . | . . . . . . Kick . | . . . . . . Crush 1 | . . . 1 . . Escape Stasis . | . . . . . . Rewire 1 | . . . . . 1 Trap . | . . . . . . Miscellaneous . | . . . . . . Route ------- -11/Scrapyard -10/Materials (discovered 3 exits: *Mat x2 / *Min) -10/Mines -9/Materials (discovered 2 exits: [*Mat] / [*Min]) -9/Mines (discovered 2 exits: [*Mat] / *Exi) -9/Exiles History --------- Turn | Location | Event 20 | -11/Scrapyard | Discovered new exit (range 16) 104 | -11/Scrapyard | Entered Materials 285 | -10/Materials | Identified exit to Mines 288 | -10/Materials | Discovered new exit (range 3) 304 | -10/Materials | Build established: Mutant 430 | -10/Materials | Discovered new exit (range 15) 435 | -10/Materials | Central database locked down 628 | -10/Materials | Entered Mines 756 | -10/Mines | Assembled infested the area 761 | -10/Mines | Assisted by a Guerilla fighting off Assembled 842 | -10/Mines | Met a Derelict who couldn't figure out how to use a Trap Extractor 985 | -10/Mines | Learned location of Zion (-7) 1012 | -10/Mines | Discovered new exit (range 5) 1018 | -10/Mines | Entered Materials 1018 | -9/Materials | Evolved 2 slots: Propulsion x1, Utility x1 1058 | -9/Materials | Discovered new exit (range 15) 1388 | -9/Materials | Build established: Scavenger-Mutant 1480 | -9/Materials | Discovered new exit (range 16) 1485 | -9/Materials | Repaired Adv. Terrain Scanner 1532 | -9/Materials | Repaired Adv. Visual Processing Unit 1643 | -9/Materials | Entered Mines 1644 | -9/Mines | Learned location of Storage (-8) 1648 | -9/Mines | Discovered new exit (range 8) 1795 | -9/Mines | Deemed a non-threat by the Exiles lab entrance 1797 | -9/Mines | Discovered new exit (range 5) 1803 | -9/Mines | Entered Exiles 1803 | -9/Exiles | Found Exiles lab destroyed 1963 | -9/Exiles | Opened EX-Vault 1968 | -9/Exiles | Found Prototype Special Weapon 1968 | -9/Exiles | Identified Field Lobotomy Kit 1970 | -9/Exiles | Self-destructed Last Messages --------------- you? I'm here trying to lose some heat after our second raid on Storage failed. Whatever you do stay away from that place, they've tightened security following our previous successful raids." World map updated: -8/Storage. 01646_ 8V-B8D(g): "We scattered so the Unaware couldn't effectively use their advantage in numbers, and I suggest you do the same." 01646_ 8V-B8D(g) slips back into the shadows. 01648_ EXIT=FOUND 01679_ K-01 Serf collects debris. 01795_ "No threat detected, you may enter." 01797_ EXIT=FOUND LOCATION=UNKNOWN GOAL=ESCAPE 01959_ Attempting to rewire as-65283. 01959_ as-65283 cannot be rewired. 01963_ Connecting with EX-Vault Access... 01963_ Current location identified: Exiles 01968_ Dropped EM Shotgun. 01968_ Acquired Prototype Special Weapon. 01968_ Identified Field Lobotomy Kit. Map ----- +----------------------------------------------------+ | | | | | | | | | | | | | | | | | | | | | | | | | | | | | | | | | | | | | | | | | | | | | ?????????????????????#########?????#?????????????? | | ?????????????????????# #?????????#?????????? | | ?????????????????????# #???????????????????? | | ?????????????????????# [@ #???????????????????? | | ?????????????#???????# X#???????????????????? | | ?????????????#???????## ##????#??????????????? | | ???????????????#?????#X a #?????#??????????????? | | ?????????????#???????##a ##????#??????????????? | | ??????????????????????# a #????#???????????????? | | ?????????#????????????# #???###??#???????????? | | ??????????????????????# #??""""??#???????????? | | ??????????????????????# ## """#?#??????????? | | ?????????????????????## X""#????????????? | | ??????????????????????# ## """#????????????? | | ????????????????####??# #??"""""?????????????? | | ????????????????"""""?# #???###??????????????? | | ???????????????""" ## #????#???#???????????? | | ?????????#????#""X #?????#???????????#??? | | ??????????????#" #????????????#???????? | | ???????????#??#" ## #??#?????????????????? | | ????????????#?#" ?# #?????###????????????? | | ???????????##? ###??# ##?"""""""????????#??? | | ?????????????? ?#????# #??"""""""??#????????? | | ?????????????????????## #?#" """#??????????? | | ??????????#?? ???????## ## ""#??????????? | | ?????????????????????#" ""#??????????? | | ?????????????????????#" "#?????#????? | | ?????????????????????#" "#??????????? | +----------------------------------------------------+ Best States ------------- Heat Dissipation 28 Energy Generation 14 Energy Capacity 280 Matter Stores 300 Matter Capacity 300 Sight Range 16 Terrain Scan Range 20 Terrain Scan Density 85 Armor Coverage 150 Resistance: KI 20 Resistance: TH 20 Resistance: EX 20 Resistance: EM 35 Resistance: I 20 Resistance: S 20 Resistance: P 20 Evasion (%) 40 Recoil Reduction 3 Offensive Hacking 10 Item Schematics ----------------- ECM Suite | -10/Materials | Hacked Lrg. Storage Unit | -10/Materials | Hacked Robot Schematics ------------------ None Fabricated ------------ Nothing Alien Tech Used ----------------- None Achievements -------------- None Challenges ------------ None Game ------ Seed SingularityGammaLoader Manual? 0 Play Time 00:19:17 Cumulative 277.5 hours Start 2021.09.19 @ 01:00:56 End 2021.09.19 @ 01:19:40 Sessions 1 Manual Loads 0 Difficulty Adventurer Special Mode None Game No. 115 Rogue 14 Adventurer 99 Explorer 2 Win Type - Total 16 Types 13/2/0/0/0/0/0/0/1 Lore% 48 Gallery% 76 Achievement% 53 Wizard Run 0 Options --------- ASCII 0 Keyboard 1 Movement Numpad Keybinds 0 Fullscreen 1 Font 36/TerminusFine Map View 76x50 Tactical HUD 1 Map Filters NONE Filters NONE Steam 1 RUN: 3c1f557f-0687-4e14-b983-d6a59b50e714